fUSD/lending_fUSD_20251023
["ID","MTS","AMOUNT","RATE_DAILY","PERIOD"]
[392171012,1761231045839,-470.7653969,0.00044999,120]
[392171013,1761231045849,-500.0,0.00044999,120]
[392171014,1761231045861,-157.69782942,0.00044999,120]
[392171015,1761231045874,-1000.0,0.00044999,120]
[392171016,1761231045884,-995.63702356,0.00044999,120]
[392171017,1761231045894,-999.0,0.00044999,120]
[392171018,1761231045904,-500.0,0.00044999,120]
[392171019,1761231045918,-500.0,0.00044999,120]
[392171020,1761231045930,-500.0,0.00044999,120]
[392171021,1761231045941,-500.0,0.00044999,120]
[392171022,1761231045950,-272.03,0.00044999,120]
[392171023,1761231045962,-262.93,0.00044999,120]
[392171024,1761231045973,-500.0,0.00044999,120]
[392171025,1761231045984,-500.0,0.00044999,120]
[392171026,1761231045995,-500.0,0.00044999,120]
[392171027,1761231046005,-445.52978399,0.00044999,120]
[392171028,1761231046015,-250.0,0.00044999,120]
[392171029,1761231046026,-500.0,0.00044999,120]
[392171030,1761231046035,-496.19095782,0.00044999,120]
[392171031,1761231046045,-250.0,0.00044999,120]
[392171033,1761231046056,-500.0,0.00044999,120]
[392171035,1761231046065,-250.0,0.00044999,120]
[392171036,1761231046074,-500.0,0.00044999,120]
[392171037,1761231046084,-414.0,0.00044999,120]
[392171038,1761231046094,-500.0,0.00044999,120]
[392171039,1761231046104,-429.318,0.00044999,120]
[392171040,1761231046114,-500.0,0.00044999,120]
[392171041,1761231046123,-500.0,0.00044999,120]
[392171042,1761231046134,-445.202766,0.00044999,120]
[392171043,1761231046144,-500.0,0.00044999,120]
[392171044,1761231046153,-500.0,0.00044999,120]
[392171045,1761231046163,-461.67526834,0.00044999,120]
[392171046,1761231046173,-500.0,0.00044999,120]
[392171047,1761231046183,-500.0,0.00044999,120]
[392171048,1761231046192,-478.75725327,0.00044999,120]
[392171049,1761231046202,-500.0,0.00044999,120]
[392171050,1761231046212,-500.0,0.00044999,120]
[392171051,1761231046222,-496.47127165,0.00044999,120]
[392171052,1761231046232,-500.0,0.00044999,120]
[392171053,1761231046243,-500.0,0.00044999,120]
[392171054,1761231046253,-500.0,0.00044999,120]
[392171055,1761231046263,-500.0,0.00044999,120]
[392171056,1761231046273,-500.0,0.00044999,120]
[392171057,1761231046283,-500.0,0.00044999,120]
[392171058,1761231046293,-500.0,0.00044999,120]
[392171060,1761231046303,-500.0,0.00044999,120]
[392171061,1761231046313,-500.0,0.00044999,120]
[392171062,1761231046323,-500.0,0.00044999,120]
[392171063,1761231046334,-500.0,0.00044999,120]
[392171064,1761231046344,-500.0,0.00044999,120]
[392171065,1761231046354,-500.0,0.00044999,120]
[392171066,1761231046364,-500.0,0.00044999,120]
[392171067,1761231046374,-500.0,0.00044999,120]
[392171068,1761231046384,-500.0,0.00044999,120]
[392171069,1761231046394,-500.0,0.00044999,120]
[392171070,1761231046404,-500.0,0.00044999,120]
[392171071,1761231046415,-500.0,0.00044999,120]
[392171072,1761231046425,-500.0,0.00044999,120]
[392171073,1761231046437,-500.0,0.00044999,120]
[392171074,1761231046447,-500.0,0.00044999,120]
[392171075,1761231046458,-500.0,0.00044999,120]
[392171076,1761231046468,-500.0,0.00044999,120]
[392171077,1761231046478,-500.0,0.00044999,120]
[392171078,1761231046488,-500.0,0.00044999,120]
[392171079,1761231046502,-500.0,0.00044999,120]
[392171080,1761231046512,-500.0,0.00044999,120]
[392171081,1761231046523,-500.0,0.00044999,120]
[392171082,1761231046533,-500.0,0.00044999,120]
[392171083,1761231046544,-500.0,0.00044999,120]
[392171084,1761231046554,-500.0,0.00044999,120]
[392171086,1761231046564,-500.0,0.00044999,120]
[392171087,1761231046574,-500.0,0.00044999,120]
[392171088,1761231046708,-500.0,0.00044999,120]
[392171089,1761231046720,-500.0,0.00044999,120]
[392171090,1761231046730,-500.0,0.00044999,120]
[392171091,1761231046740,-500.0,0.00044999,120]
[392171092,1761231046751,-500.0,0.00044999,120]
[392171093,1761231046761,-500.0,0.00044999,120]
[392171094,1761231046770,-500.0,0.00044999,120]
[392171095,1761231046780,-500.0,0.00044999,120]
[392171096,1761231046790,-500.0,0.00044999,120]
[392171097,1761231046800,-250.0,0.00044999,120]
[392171098,1761231046811,-500.0,0.00044999,120]
[392171100,1761231046820,-250.0,0.00044999,120]
[392171101,1761231046830,-500.0,0.00044999,120]
[392171102,1761231046840,-250.0,0.00044999,120]
[392171104,1761231046853,-500.0,0.00044999,120]
[392171105,1761231046863,-250.0,0.00044999,120]
[392171106,1761231046877,-250.0,0.00044999,120]
[392171107,1761231046887,-500.0,0.00044999,120]
[392171108,1761231046897,-250.0,0.00044999,120]
[392171109,1761231046907,-500.0,0.00044999,120]
[392171110,1761231046916,-250.0,0.00044999,120]
[392171111,1761231046927,-434.21554519,0.00044999,120]
[392171112,1761231046937,-250.0,0.00044999,120]
[392171113,1761231046947,-250.0,0.00044999,120]
[392171114,1761231046958,-250.0,0.00044999,120]
[392171115,1761231046967,-250.0,0.00044999,120]
[392171116,1761231046978,-500.0,0.00044999,120]
[392171117,1761231046988,-218.12,0.00044999,120]
[392171118,1761231046998,-250.0,0.00044999,120]
[392171119,1761231047007,-250.0,0.00044999,120]
[392171120,1761231047016,-600.0,0.00044999,120]
[392171121,1761231047026,-171.35626885,0.00044999,120]
[392171122,1761231047035,-600.0,0.00044999,120]
[392171123,1761231047045,-600.0,0.00044999,120]
[392171124,1761231047054,-600.0,0.00044999,120]
[392171125,1761231047068,-50000.0,0.00045,19]
[392171126,1761231047077,-10145.90430246,0.00045,18]
[392171127,1761231047087,-137680.26039234,0.00045,120]
[392171128,1761231047262,-151.0,0.00038893,2]
[392171129,1761231047271,-251.97852004,0.00042958,50]
[392171130,1761231047280,-500.0,0.00043835,120]
[392171131,1761231047290,-826.87219739,0.00044719,2]
[392171132,1761231047299,-500.0,0.00044899,120]
[392171133,1761231047309,-151.0,0.00044996,30]
[392171134,1761231047318,-151.0,0.00044996,120]
[392171135,1761231047328,-151.0,0.00044996,120]
[392171136,1761231047338,-65.14453257,0.00045,120]
[392171137,1761231047394,-17.77875487,0.00045,120]
[392171138,1761231047406,-1129.11616765,0.00045,120]
[392171139,1761231047421,-615.8607968,0.00045,120]
[392171140,1761231047437,-10395.0,0.00045,120]
[392171141,1761231047451,-164880.0,0.00045,120]
[392171142,1761231047463,-363.44174333,0.00045,120]
[392171147,1761231062024,2500.0,0.00025434,120]
[392171148,1761231062158,2500.0,0.00025583,120]
[392171149,1761231063062,249.44206989,0.00025434,120]
[392171150,1761231066156,195.0,0.00025434,120]
[392171151,1761231066271,195.0,0.00025583,120]
[392171152,1761231067014,193.0,0.00025434,120]
[392171153,1761231067105,220.00154504,0.00025583,120]
[392171367,1761231313530,-180.40188871,0.00024932,2]
[392171471,1761231488629,15281.584128,7.945e-05,2]
[392171472,1761231489352,-232.86496782,0.00024832,2]
[392171478,1761231514146,-267.13503218,0.00024832,2]
[392171485,1761231554075,-302.0,0.00024932,2]
[392171487,1761231569511,-17.59811129,0.00024932,2]
[392171488,1761231569536,-250.0,0.00025257,2]
[392171489,1761231569564,-140.41021117,0.00026331,2]
[392171490,1761231573625,-109.58978883,0.00026331,2]
[392171491,1761231573649,-254.78063025,0.00027366,2]
[392171492,1761231575632,-45.21936975,0.00027366,2]
[392171493,1761231575656,-135.41441645,0.00027366,2]
[392171494,1761231628455,-159.596045,0.00027325,2]
[392171495,1761231628478,-150.0,0.00027325,2]
[392171496,1761231628500,-19.40082248,0.00027359,2]
[392171497,1761231630456,-225.83644432,0.00027359,2]
[392171498,1761231633079,250.0,0.00017,2]
[392171550,1761231900705,1842532.0,0.00036533,60]
[392171555,1761231978158,10174.39886237,0.00036533,2]
[392171561,1761232017063,575.0,0.00018015,60]
[392171562,1761232032125,-500.0,0.00024732,2]
[392171563,1761232032147,-214.02511528,0.00024832,2]
[392171564,1761232040136,-35.97488472,0.00024832,2]
[392171565,1761232040157,-500.0,0.00024932,2]
[392171566,1761232040178,-160.0,0.00024932,2]
[392171567,1761232040200,-162.44,0.00027,2]
[392171568,1761232040226,-159.59604499,0.00027105,2]
[392171569,1761232040248,-1065.0,0.00027204,2]
[392171570,1761232040270,-300.0,0.00027204,2]
[392171571,1761232040292,-250.0,0.00027205,2]
[392171572,1761232040315,-2500.0,0.00027205,2]
[392171573,1761232040335,-195.0,0.00027205,2]
[392171574,1761232040356,-250.0,0.00027205,2]
[392171575,1761232040376,-493.1588286,0.00027393,2]
[392171576,1761232040397,-420.0,0.00029404,2]
[392171577,1761232040418,-1200.0,0.00030135,2]
[392171578,1761232040439,-500.0,0.00030136,5]
[392171579,1761232040460,-500.0,0.00030136,5]
[392171580,1761232040484,-264.79934119,0.00030511,3]
[392171597,1761232158223,-235.20065881,0.00030511,3]
[392171598,1761232158244,-300.0,0.00030572,120]
[392171599,1761232158273,-263.14961937,0.00030572,2]
[392171600,1761232158295,-150.0,0.00030631,2]
[392171601,1761232158316,-13.49937461,0.00030631,2]
[392171611,1761232162112,-386.50062539,0.00030631,2]
[392171612,1761232162133,-178.83,0.00030632,14]
[392171613,1761232162154,-151.0,0.00030632,2]
[392171614,1761232162179,-151.0,0.00030632,2]
[392171615,1761232162200,-151.0,0.00030632,2]
[392171616,1761232162220,-151.0,0.00030632,2]
[392171617,1761232162242,-151.0,0.00030632,2]
[392171618,1761232162268,-151.0,0.00030632,2]
[392171619,1761232162291,-151.0,0.00030632,2]
[392171620,1761232162313,-151.0,0.00030632,2]
[392171621,1761232162334,-151.0,0.00030632,2]
[392171622,1761232162356,-151.0,0.00030632,2]
[392171623,1761232162376,-151.0,0.00030632,2]
[392171624,1761232162396,-151.0,0.00030632,2]
[392171625,1761232162416,-151.0,0.00030632,2]
[392171626,1761232162436,-151.0,0.00030632,2]
[392171627,1761232162460,-151.0,0.00030632,2]
[392171628,1761232162479,-151.0,0.00030632,2]
[392171629,1761232162499,-151.0,0.00030632,2]
[392171630,1761232162525,-151.0,0.00030632,2]
[392171631,1761232162546,-151.0,0.00030632,2]
[392171632,1761232162566,-151.0,0.00030632,2]
[392171634,1761232162588,-151.0,0.00030632,2]
[392171635,1761232162609,-151.0,0.00030632,2]
[392171636,1761232162630,-151.0,0.00030632,2]
[392171637,1761232162651,-151.0,0.00030632,2]
[392171638,1761232162673,-151.0,0.00030632,2]
[392171639,1761232162693,-151.0,0.00030632,2]
[392171640,1761232162714,-151.0,0.00030632,2]
[392171641,1761232162736,-151.0,0.00030632,2]
[392171642,1761232162756,-151.0,0.00030632,2]
[392171643,1761232162783,-151.0,0.00030632,2]
[392171644,1761232162808,-151.0,0.00030632,2]
[392171645,1761232162832,-151.0,0.00030632,2]
[392171646,1761232162854,-151.0,0.00030632,2]
[392171647,1761232162874,-151.0,0.00030632,2]
[392171648,1761232162898,-151.0,0.00030632,2]
[392171649,1761232162918,-151.0,0.00030632,2]
[392171650,1761232162937,-151.0,0.00030632,2]
[392171651,1761232162957,-151.0,0.00030632,2]
[392171652,1761232162978,-151.0,0.00030632,2]
[392171653,1761232162998,-272.84897206,0.00030632,2]
[392171654,1761232163024,-151.0,0.00030632,2]
[392171655,1761232163046,-151.0,0.00030632,2]
[392171656,1761232163067,-151.0,0.00030632,2]
[392171657,1761232163087,-151.0,0.00030632,2]
[392171658,1761232163108,-151.0,0.00030632,2]
[392171659,1761232163129,-500.0,0.00030684,5]
[392171660,1761232163151,-300.0,0.00030789,120]
[392171661,1761232163174,-300.0,0.00030789,120]
[392171662,1761232163197,-300.0,0.00030789,120]
[392171663,1761232163220,-178.83,0.00030906,14]
[392171664,1761232163242,-1144.015,0.00031059,28]
[392171665,1761232163268,-1000.0,0.00031059,3]
[392171666,1761232163290,-178.85,0.0003118,14]
[392171667,1761232163310,-1503.19929061,0.00031607,3]
[392171668,1761232163337,-188.46,0.00031806,2]
[392171669,1761232163358,-500.0,0.00032633,2]
[392171670,1761232163379,-500.0,0.00032633,5]
[392171671,1761232163400,-174.88928588,0.00032633,5]
[392171672,1761232163421,-500.0,0.00032633,5]
[392171673,1761232163442,-570.98443138,0.00032633,5]
[392171674,1761232163462,-500.0,0.00032668,2]
[392171675,1761232163483,-323.00998445,0.00032668,2]
[392171676,1761232163506,-500.0,0.00032668,2]
[392171677,1761232163535,-500.0,0.00032668,2]
[392171678,1761232163561,-619.02822227,0.00032668,2]
[392171679,1761232163586,-500.0,0.00032668,2]
[392171680,1761232163608,-500.0,0.00032668,2]
[392171681,1761232163632,-500.0,0.00032668,2]
[392171682,1761232163656,-500.0,0.00032668,2]
[392171683,1761232163679,-500.0,0.00032668,2]
[392171684,1761232163702,-500.0,0.00032668,2]
[392171685,1761232163726,-500.0,0.00032668,2]
[392171686,1761232163749,-500.0,0.00032668,2]
[392171687,1761232163777,-500.0,0.00032668,2]
[392171688,1761232163800,-500.0,0.00032668,2]
[392171689,1761232163823,-500.0,0.00032668,2]
[392171690,1761232163846,-500.0,0.00032668,2]
[392171691,1761232163868,-500.0,0.00032668,2]
[392171692,1761232163902,-500.0,0.00032668,2]
[392171693,1761232163925,-500.0,0.00032668,2]
[392171694,1761232163948,-500.0,0.00032668,2]
[392171695,1761232163970,-500.75564392,0.00032669,5]
[392171696,1761232163990,-500.0,0.00032669,2]
[392171697,1761232164013,-500.0,0.00032769,5]
[392171698,1761232164034,-500.0,0.00032769,5]
[392171699,1761232164055,-503.6743994,0.00032769,5]
[392171700,1761232164076,-500.0,0.00032769,5]
[392171701,1761232164096,-500.0,0.00032769,5]
[392171702,1761232164116,-500.0,0.00032769,5]
[392171703,1761232164137,-500.0,0.00033217,2]
[392171704,1761232164158,-339.31532798,0.00033317,5]
[392171705,1761232164179,-300.0,0.00033562,120]
[392171706,1761232164204,-250.0,0.00033562,2]
[392171707,1761232164228,-152.36,0.00033783,60]
[392171708,1761232164252,-152.36,0.00033883,60]
[392171709,1761232164280,-152.36,0.00033983,60]
[392171710,1761232164304,-152.36,0.00034083,60]
[392171711,1761232164328,-152.36,0.00034183,60]
[392171712,1761232164351,-152.36,0.00034283,60]
[392171713,1761232164373,-10.22575666,0.00034383,60]
[392171725,1761232232305,-151.0,0.00033583,2]
[392171726,1761232232319,-151.0,0.00033583,2]
[392171727,1761232232328,-151.0,0.00033583,2]
[392171728,1761232232337,-151.0,0.00033583,2]
[392171729,1761232232349,-151.0,0.00033583,2]
[392171730,1761232232358,-151.0,0.00033583,2]
[392171731,1761232232367,-151.0,0.00033583,2]
[392171732,1761232232376,-151.0,0.00033583,2]
[392171733,1761232232386,-151.0,0.00033583,2]
[392171734,1761232232396,-151.0,0.00033583,2]
[392171735,1761232232405,-151.0,0.00033583,2]
[392171736,1761232232416,-151.0,0.00033583,2]
[392171737,1761232232425,-151.0,0.00033583,2]
[392171738,1761232232435,-151.0,0.00033583,2]
[392171739,1761232232445,-151.0,0.00033583,2]
[392171740,1761232232455,-174.03959994,0.00033583,2]
[392171741,1761232232466,-200.0,0.00034383,2]
[392171742,1761232232475,-142.13424334,0.00034383,60]
[392171743,1761232232485,-235.06410556,0.00034433,120]
[392171744,1761232232495,-152.36,0.00034483,60]
[392171745,1761232232504,-5853.22042714,0.00034583,5]
[392171746,1761232232514,-152.36,0.00034583,60]
[392171747,1761232232524,-250.0,0.00034604,2]
[392171748,1761232232534,-7837.3,0.00034649,30]
[392171749,1761232232544,-1326.56,0.00034649,2]
[392171750,1761232232554,-1291.49,0.00034655,2]
[392171751,1761232232567,-152.36,0.00034683,60]
[392171752,1761232232577,-200.0,0.00034727,2]
[392171753,1761232232587,-152.36,0.00034783,60]
[392171754,1761232232597,-228.02,0.00034838,2]
[392171755,1761232232607,-152.36,0.00034883,60]
[392171756,1761232232618,-152.36,0.00034983,60]
[392171757,1761232232628,-200.0,0.00035074,2]
[392171758,1761232232638,-152.36,0.00035083,60]
[392171759,1761232232648,-150.0,0.0003518,2]
[392171761,1761232232657,-152.36,0.00035183,60]
[392171762,1761232232671,-5591.96,0.00035255,2]
[392171763,1761232232681,-152.36,0.00035283,60]
[392171764,1761232232691,-152.36,0.00035383,60]
[392171765,1761232232700,-200.0,0.00035425,2]
[392171766,1761232232709,-152.36,0.00035483,60]
[392171767,1761232232719,-152.36,0.00035583,60]
[392171768,1761232232729,-152.36,0.00035683,60]
[392171769,1761232232738,-200.0,0.00035779,2]
[392171770,1761232232748,-152.36,0.00035783,60]
[392171771,1761232232757,-152.36,0.00035883,60]
[392171772,1761232232766,-152.36,0.00035983,60]
[392171773,1761232232776,-1463.0,0.00036,5]
[392171775,1761232232786,-152.36,0.00036083,60]
[392171777,1761232232796,-258.96752093,0.00036089,2]
[392171779,1761232232805,-250.0,0.00036089,2]
[392171780,1761232232817,-250.0,0.00036089,2]
[392171781,1761232232826,-250.0,0.00036089,2]
[392171782,1761232232836,-250.0,0.00036089,2]
[392171783,1761232232845,-338.69659029,0.00036089,2]
[392171784,1761232232854,-334.94690596,0.00036098,2]
[392171785,1761232232864,-152.36,0.00036183,60]
[392171786,1761232232873,-2000.0,0.000362,2]
[392171787,1761232232883,-152.36,0.00036283,60]
[392171788,1761232232893,-185.21883869,0.00036356,4]
[392171789,1761232232903,-152.36,0.00036383,60]
[392171790,1761232232913,-500.0,0.00036466,2]
[392171791,1761232232923,-152.36,0.00036483,60]
[392171792,1761232232932,-5000.0,0.00036533,30]
[392171793,1761232232941,-2500.0,0.00036533,30]
[392171794,1761232232950,-2000.0,0.00036533,30]
[392171795,1761232232960,-490.0,0.00036533,30]
[392171796,1761232232970,-152.36,0.00036583,60]
[392171797,1761232232980,-152.36,0.00036683,60]
[392171798,1761232232989,-493.0,0.00036711,2]
[392171799,1761232233000,-493.0,0.00036729,7]
[392171800,1761232233010,-152.36,0.00036783,60]
[392171801,1761232233019,-152.36,0.00036883,60]
[392171802,1761232233029,-260.6834,0.00036888,7]
[392171803,1761232233038,-493.0,0.00036915,2]
[392171804,1761232233052,-493.0,0.00036934,2]
[392171805,1761232233062,-152.36,0.00036983,60]
[392171806,1761232233073,-493.0,0.00036994,7]
[392171807,1761232233083,-152.36,0.00037083,60]
[392171808,1761232233093,-152.36,0.00037183,60]
[392171809,1761232233103,-180.77331106,0.000372,120]
[392171810,1761232233112,-515.0,0.00037256,2]
[392171811,1761232233121,-152.36,0.00037283,60]
[392171812,1761232233131,-152.36,0.00037383,60]
[392171813,1761232233140,-493.0,0.00037404,2]
[392171814,1761232233149,-152.36,0.00037483,60]
[392171815,1761232233158,-181.69594324,0.00037532,15]
[392171816,1761232233168,-183.50802038,0.00037532,15]
[392171817,1761232233177,-500.0,0.00037532,15]
[392171818,1761232233186,-301.54306633,0.00037532,15]
[392171819,1761232233196,-2785.47399732,0.00037532,2]
[392171820,1761232233208,-2943.52612362,0.00037532,2]
[392171821,1761232233218,-19549.38415711,0.00037533,2]
[392171822,1761232233228,-58704.04,0.00037533,2]
[392171823,1761232233238,-515.0,0.0003758,2]
[392171824,1761232233247,-152.36,0.00037583,60]
[392171825,1761232233257,-152.36,0.00037683,60]
[392171826,1761232233270,-3499.48068095,0.00037768,2]
[392171827,1761232233280,-152.36,0.00037783,60]
[392171828,1761232233289,-300.0,0.00037822,120]
[392171829,1761232233299,-610.0,0.00037868,2]
[392171830,1761232233309,-2751.0,0.00037868,120]
[392171831,1761232233320,-200.0,0.00037868,2]
[392171832,1761232233330,-1852.42,0.00037868,2]
[392171833,1761232233340,-275.12,0.00037868,2]
[392171834,1761232233349,-5000.0,0.00037868,2]
[392171835,1761232233359,-578.03,0.00037868,120]
[392171836,1761232233368,-150.14,0.00037868,2]
[392171837,1761232233378,-152.36,0.00037883,60]
[392171838,1761232233388,-152.36,0.00037983,60]
[392171839,1761232233398,-493.0,0.00038065,2]
[392171840,1761232233408,-152.36,0.00038083,60]
[392171841,1761232233564,-515.0,0.00038163,7]
[392171842,1761232233576,-1579.21,0.00038171,2]
[392171843,1761232233587,-152.36,0.00038183,60]
[392171844,1761232233597,-493.0,0.00038204,7]
[392171845,1761232233607,-500.0,0.00038267,5]
[392171846,1761232233617,-152.36,0.00038283,60]
[392171847,1761232233627,-515.0,0.00038324,120]
[392171848,1761232233636,-152.36,0.00038383,120]
[392171849,1761232233647,-152.36,0.00038483,120]
[392171850,1761232233656,-3499.48068086,0.00038562,2]
[392171852,1761232233666,-152.36,0.00038583,120]
[392171853,1761232233675,-152.36,0.00038683,120]
[392171854,1761232233684,-152.36,0.00038783,120]
[392171855,1761232233694,-493.0,0.00038792,2]
[392171856,1761232233705,-180.77331105,0.00038795,120]
[392171857,1761232233714,-318.50826348,0.00038827,7]
[392171858,1761232233760,-0.88762143,0.00036097,15]
[392171859,1761232233772,-499.11237857,0.00036097,15]
[392171860,1761232233782,-196.49173652,0.00038827,7]
[392171861,1761232233791,-152.36,0.00038883,120]
[392171862,1761232233801,-2346.1508,0.00038888,30]
[392171863,1761232233810,-152.36,0.00038983,120]
[392171864,1761232233822,-152.36,0.00039083,120]
[392171865,1761232233832,-515.0,0.00039174,2]
[392171866,1761232233841,-152.74147277,0.00039183,120]
[392171867,1761232233850,-200.0,0.00039228,2]
[392171868,1761232233859,-3499.48068086,0.00039355,2]
[392171869,1761232233869,-515.0,0.00039445,2]
[392171870,1761232233879,-154.11715574,0.00039544,7]
[392171885,1761232238266,-500.0,0.00036097,15]
[392171886,1761232238281,-500.0,0.00036097,15]
[392171887,1761232238291,-568.78091359,0.00036097,15]
[392171888,1761232238301,-394.39223589,0.00036097,15]
[392171889,1761232238312,-105.60776411,0.00036097,15]
[392171890,1761232238327,-500.0,0.00036097,15]
[392171891,1761232238337,-500.0,0.00036097,15]
[392171892,1761232238348,-500.0,0.00036097,15]
[392171893,1761232238357,-500.0,0.00036097,15]
[392171894,1761232238367,-400.0,0.00036097,15]
[392171895,1761232238376,-500.0,0.00036097,15]
[392171896,1761232238386,-400.0,0.00036097,15]
[392171897,1761232238396,-500.0,0.00036097,15]
[392171898,1761232238406,-500.0,0.00036097,15]
[392171899,1761232238417,-5164.61,0.00037868,2]
[392171900,1761232238428,-338.88284426,0.00039544,7]
[392171901,1761232238439,-493.0,0.00039576,120]
[392171902,1761232238449,-493.0,0.00039668,2]
[392171903,1761232238459,-493.0,0.00039795,120]
[392171904,1761232238469,-493.0,0.0003984,2]
[392171905,1761232238479,-1750.0,0.000399,2]
[392171906,1761232238490,-16353.0,0.00039922,2]
[392171907,1761232238499,-515.0,0.00039954,120]
[392171908,1761232238509,-493.0,0.00040093,7]
[392171909,1761232238520,-3499.48068086,0.00040149,15]
[392171910,1761232238530,-493.0,0.00040191,2]
[392171911,1761232238540,-493.0,0.00040321,120]
[392171912,1761232238550,-150.0,0.00040488,4]
[392171913,1761232238560,-150.0,0.00040488,4]
[392171914,1761232238571,-150.0,0.00040488,4]
[392171915,1761232238581,-150.0,0.00040488,4]
[392171916,1761232238590,-150.0,0.00040488,4]
[392171917,1761232238600,-150.0,0.00040488,4]
[392171918,1761232238611,-150.0,0.00040488,4]
[392171919,1761232238621,-150.0,0.00040488,4]
[392171920,1761232238631,-150.0,0.00040488,4]
[392171921,1761232238641,-150.0,0.00040488,4]
[392171922,1761232238652,-150.0,0.00040488,4]
[392171923,1761232238662,-150.0,0.00040488,4]
[392171924,1761232238672,-150.0,0.00040488,4]
[392171925,1761232238683,-150.14,0.00040573,2]
[392171926,1761232238693,-3499.48068086,0.00040942,15]
[392171928,1761232238703,-158.0,0.00041,90]
[392171930,1761232238713,-200.0,0.00041096,20]
[392171931,1761232238723,-500.0,0.00041123,2]
[392171932,1761232238733,-500.0,0.00041205,2]
[392171933,1761232238743,-367.71,0.00041555,14]
[392171934,1761232238753,-150.0,0.00041612,30]
[392171935,1761232238763,-1896.54363113,0.00041736,15]
[392171936,1761232238775,-1602.93704973,0.00041736,15]
[392171937,1761232238785,-4056.3404,0.00041802,2]
[392171938,1761232238795,-2990.3265,0.00041804,2]
[392171939,1761232238804,-7000.0,0.00042,7]
[392171940,1761232238814,-1588.0,0.00042073,7]
[392171941,1761232238828,-500.0,0.0004211,2]
[392171942,1761232238838,-3499.48068086,0.00042529,15]
[392171943,1761232238848,-19420.19576289,0.00042706,30]
[392171944,1761232238858,-331.44,0.00042707,2]
[392171945,1761232238868,-3744.17,0.00042707,2]
[392171946,1761232238878,-150.99,0.00042707,2]
[392171947,1761232238887,-150.0,0.00042737,30]
[392171948,1761232238897,-18896.5444382,0.00042772,10]
[392171949,1761232238907,-578.03,0.00042849,120]
[392171950,1761232238917,-319.72138009,0.00042958,60]
[392171951,1761232238927,-586.2413366,0.00043,30]
[392171952,1761232238936,-188.13764679,0.00043,30]
[392171953,1761232238946,-1268.0,0.00043135,2]
[392171954,1761232238955,-150.14,0.00043277,2]
[392171955,1761232238965,-3499.48068086,0.00043323,15]
[392171956,1761232238975,-500.53033081,0.00043388,10]
[392171957,1761232238985,-500.0,0.00043472,30]
[392171958,1761232238995,-1750.0,0.000436,2]
[392171959,1761232239004,-500.0,0.00043627,30]
[392171960,1761232239013,-180.38722812,0.00043734,28]
[392171961,1761232239023,-4429.8392,0.00043735,2]
[392171962,1761232239034,-7162.6451442,0.0004379,15]
[392171963,1761232239043,-184.64,0.00043815,2]
[392171964,1761232239053,-15350.7720397,0.00043825,3]
[392171965,1761232239063,-205.07568247,0.00043834,120]
[392171966,1761232239076,-500.0,0.00043835,120]
[392171967,1761232239086,-500.0,0.00043835,120]